{"text_format":"1","workbook":"xlsx","n_sheets":1,"sheets":["Sheet1"],"not_rendered":{"charts":0,"images":2,"macros":1,"external_links":0,"defined_names":0,"comments":0,"pivot_tables":0},"unopened":[],"bounds":{"document_bytes":16777216,"sheet_cells":100000,"rows_first":2000,"rows_last":500,"rows_between":2000,"halvings":0,"cell_chars":16384,"cell_head_chars":4096},"cells_cut":0,"cells_raw":0,"read":"whole","date_system":"1900"}

{"sheet":"Sheet1","index":0,"n_rows":51,"n_cols":22,"rows_kept":51,"cut":false,"hidden":false,"merged":[[6,11,6,13]]}
["本ソフトは理詰めで解ける問題のみを生成するナンプレ自動出題アプリです。",null,null,null,null,null,null,null,null,null,null,null,"解答はB33～J42に示されます。",null,null,null,null,null,null,null,null,"左右対称・上下対称・点対称・左右対称にして点対称・ハート型は近日中に用意する予定です。"]
[null,"問題",null,null,null,null,null,null,null,null,"ナンプレを作成するにはM５にヒント数を入力してから実行ボタンを押して下さい。"]
[]
[]
[null,null,null,null,null,null,null,null,null,null,null,"ヒント数",26,null,"入力できる数字は24以上36以下です。"]
[]
[]
[]
[]
[]
[]
[null,"解答場所1",null,null,null,null,null,null,null,null,"　解答する場所は２か所用意されています。解答場所1を利用して正解である場合にはB43～J43のすべてのセルが0となります。"]
[null,null,null,null,null,null,null,null,null,null,null,"ヒント数29以上の場合はこのソフトではなく、"]
[null,null,null,null,null,null,null,null,null,null,null,"数独自動生成新方式アプリ（ハイブリッド方式）のVer.3～Ver.5を使って下さい。"]
[null,null,null,null,null,null,null,null,null,null,null,"本ソフトはヒント数が22以下では数独自動生成新方式アプリ（ハイブリッド方式）Ver.3の"]
[null,null,null,null,null,null,null,null,null,null,null,"70倍から数千倍超の速さで数独を生成できます。"]
[null,null,null,null,null,null,null,null,null,null,null,"ですが、ヒント数20では場合によっては30分程度時間を要します。"]
[]
[]
[]
[]
[null,"解答場所2"]
[]
[]
[]
[]
[]
[]
[]
[]
[]
[null,"解答"]
[]
[]
[]
[]
[]
[]
[]
[]
[]
[]
[null,{"$f":"B13-B33","v":0},{"$f":"C13-C33","v":0},0,0,0,0,0,0,0]
[null,{"$f":"B14-B34","v":0},0,0,0,0,0,0,0,0]
[null,0,0,0,0,0,0,0,0,0]
[null,0,0,0,0,0,0,0,0,0]
[null,0,0,0,0,0,0,0,0,0]
[null,0,0,0,0,0,0,0,0,0]
[null,0,0,0,0,0,0,0,0,0]
[null,0,0,0,0,0,0,0,0,0]
[null,0,0,0,0,0,0,0,0,0]